Cogmind - Beta 16 @@@ ROGUE MODE // 2026.01.25 @ 09:37:17 Player: mule Result: Destroyed by X-62 Marksman with Pulse Rifle Performance ------------- Evolutions (2) 1000 Regions Visited (5) 1000 Robots Destroyed (61) 305 Value Destroyed (1607) 1607 Prototype IDs (6) 120 Alien Tech Used (0) 0 Bonus (324) 324 TOTAL SCORE: 4356 Bonus ------- Follower Combat Kills 324 Cogmind --------- Core Integrity 0/550 Matter 288/300 Energy 57/265 System Corruption 0% Temperature Cool (27) Movement Core (750) Ox14 Location -8/Materials Parts ------- > --- POWER (1) -------- Improved Ion Engine > --- PROPULSION (4) --- (None) > --- UTILITY (3) ------ Medium Storage Unit Large Storage Unit Drone Bay (0/2) > --- WEAPON (3) ------- (None) > --- INVENTORY (15) --- Improved Ion Engine Peak State ------------ > --- POWER ------------ Cold Fusion Reactor > --- PROPULSION ------- Improved Aluminum Leg Improved Aluminum Leg Improved Aluminum Leg Improved Aluminum Leg > --- UTILITY ---------- Large Storage Unit Hacking Suite Drone Bay > --- WEAPON ----------- Advanced Beam Cannon Advanced Beam Cannon Advanced Beam Cannon > --- INVENTORY -------- Improved Ion Engine Improved Ion Engine Aluminum Leg Aluminum Leg Aluminum Leg Aluminum Leg Aluminum Leg Medium Storage Unit Drone Bay Advanced Beam Cannon Advanced Beam Cannon Advanced Beam Cannon Advanced Beam Cannon Advanced Beam Cannon [Rating: 35] Favorites ----------- Power Improved Ion Engine Engine Improved Ion Engine Reactor Cold Fusion Reactor Propulsion Aluminum Leg Leg Aluminum Leg Utility Large Storage Unit Device Structural Scanner Storage Large Storage Unit Hackware Hacking Suite Weapon Advanced Beam Cannon Energy Gun Particle Gun Energy Cannon Advanced Beam Cannon Ballistic Gun Assault Rifle Ballistic Cannon Mini Assault Cannon Launcher Grenade Launcher Impact Weapon Heavy Hammer Build | -11 -10 -10 -9 -9 -8 ------- Run | Yrd Mat Min Mat Sto Mat Slots Evolved 4 | . . . 2 . 2 Power . | . . . . . . Propulsion 2 | . . . 1 . 1 Utility 1 | . . . . . 1 Weapon 1 | . . . 1 . . Parts Attached 55 | 6 3 4 6 20 16 Power 6 | 1 . 1 1 2 1 Engine 5 | 1 . 1 1 1 1 Core . | . . . . . . Reactor 1 | . . . . 1 . Propulsion 18 | 2 1 1 2 6 6 Treads . | . . . . . . Leg 18 | 2 1 1 2 6 6 Wheel . | . . . . . . Hover . | . . . . . . Flight . | . . . . . . Utility 8 | 1 1 . 1 1 4 Device 4 | . 1 . . . 3 Storage 3 | 1 . . 1 . 1 Processor . | . . . . . . Hackware 1 | . . . . 1 . Protection . | . . . . . . Artifact . | . . . . . . Weapon 23 | 2 1 2 2 11 5 Energy Gun 9 | 1 . 1 2 5 . Energy Cannon 8 | . . . . 3 5 Ballistic Gun 2 | 1 . . . 1 . Ballistic Cannon 1 | . . . . 1 . Launcher 2 | . 1 1 . . . Special Weapon . | . . . . . . Impact Weapon 1 | . . . . 1 . Slashing Weapon . | . . . . . . Piercing Weapon . | . . . . . . Special Melee Weapon . | . . . . . . Unidentified Prototypes 4 | . . . . 4 . Parts Lost 27 | . . 4 1 1 21 Power 2 | . . 1 . . 1 Propulsion 11 | . . 1 . 1 9 Utility 3 | . . . . . 3 Weapon 11 | . . 2 1 . 8 Highest Loss Streak 21 | . . 2 1 1 21 To Critical Strikes . | . . . . . . Average Backups 12 | 4 7 6 9 14 12 Power 1 | . 1 . . 1 1 Propulsion 4 | 3 3 3 3 5 4 Utility 2 | . . 1 4 3 1 Weapon 3 | . 2 1 1 4 4 Tool/Special . | . . . . . . Unused Backups 15 | . 4 . 2 9 . Power 2 | . . . . 2 . Propulsion 8 | . 4 . 1 3 . Utility 3 | . . . . 3 . Weapon 2 | . . . 1 1 . Tool/Special . | . . . . . . Average Slot Usage (%) 97 | . 95 92 97 98 95 Engine 8 | . 14 10 11 8 . Reactor 2 | . . . . 2 8 Leg 31 | . 28 24 33 32 33 Device 4 | . 10 14 11 . 7 Storage 11 | . 14 14 11 11 9 Hackware 7 | . . . . 10 9 Energy Gun 9 | . 8 9 24 8 . Energy Cannon 16 | . . . . 22 25 Ballistic Gun 2 | . 14 4 . . . Launcher 2 | . 5 13 5 . . Peak Build Rating 35 | 6 7 8 13 28 35 Average Rating 18 | 4 6 7 11 21 32 On Entrance 10 | . 6 7 8 13 28 Avg Prop Armor Cover (%) 8 | . . . . 8 . Naked Turns . | . . . . . . Heaviest Build 54 | 12 14 15 33 44 54 Greatest Support 52 | 20 20 20 30 39 52 Greatest Overweight (x) 7 | . . 1 1 7 1 Average Overweight (x) . | . . . . . . Largest Inventory Capacity 15 | 8 8 8 15 15 15 Average Capacity 13 | 7 8 8 14 15 14 Most Carried 15 | 6 8 8 15 15 15 Average Carried 12 | 4 7 6 10 14 12 Final Capacity 15 | 8 8 8 15 15 15 Final Carried 15 | 6 8 7 15 15 1 Class Distribution -------------------- 28% | Commander-Gunner 21% | Mutant 19% | Gunner 15% | Scavenger-Gunner 8% | Scavenger-Mutant 5% | Scavenger-Skirmisher Dominant Class ---------------- Mutant | -10/Materials Mutant | -10/Mines Scavenger-Skirmisher | -9/Materials Commander-Gunner | -9/Storage Gunner | -8/Materials Resources | -11 -10 -10 -9 -9 -8 ----------- Run | Yrd Mat Min Mat Sto Mat Matter Collected 1233 | 242 117 111 241 408 114 Remotely . | . . . . . . Salvage Created 2058 | . 298 122 116 1267 255 Parts 113 | . 20 9 17 53 14 Haulers Intercepted 8 | . 2 . . 6 . Recyclers Shooed . | . . . . . . Parts Field Recycled . | . . . . . . Retrieved Matter . | . . . . . . Parts Self-Destructed . | . . . . . . Prevented . | . . . . . . Parts Restored . | . . . . . . Kills | -11 -10 -10 -9 -9 -8 ------- Run | Yrd Mat Min Mat Sto Mat Combat Hostiles Destroyed 44 | . 5 7 7 20 5 Melee 2 | . . . . 2 . Guns 16 | . 3 2 2 9 . Cannons 8 | . . . . 3 5 AOE 13 | . 2 5 5 1 . Classes Destroyed 10 | . 3 1 2 4 . Worker 1 | . . . . 1 . Builder 2 | . 1 . . 1 . Hauler 8 | . 2 . . 6 . Recycler 3 | . . . . 3 . Operator 2 | . . . 1 . 1 Watcher 1 | . . . . 1 . Swarmer 11 | . . 3 5 3 . Grunt 26 | . 5 4 . 12 5 Duelist 1 | . . . . 1 . Sentry 6 | . . . 2 4 . Best Kill Streak 6 | . 5 3 3 5 6 Combat Bots Only 5 | . 2 3 3 5 5 Max Kills in Single Turn 3 | . 1 3 2 3 1 Gunslinging . | . . . . . . Exploded 3 | . 1 3 2 1 . Melee 1 | . . . . 1 . Uniques/NPCs Destroyed . | . . . . . . Combat | -11 -10 -10 -9 -9 -8 -------- Run | Yrd Mat Min Mat Sto Mat Hostile Shots Fired 381 | . 22 37 9 104 209 Missed 79 | . 6 12 . 33 28 Hits 302 | . 16 25 9 71 181 Projectile 302 | . 16 25 9 71 181 Critical Strikes 10 | . 1 . . 5 4 Part Disruptions 1 | . . . . 1 . Damage Taken 4748 | . 264 366 154 899 3065 Core 894 | . 88 46 20 181 559 Absorbed by Shields . | . . . . . . Regen/Repaired (Parts) 133 | . . . . 133 . Core Remaining (%) 65 | 100 . 46 . 49 . Volleys Fired 135 | . 24 24 11 58 18 Largest 3 | . 2 2 3 3 3 Hottest 204 | . 70 95 161 204 204 Shots Fired 318 | . 47 35 30 152 54 Gun 195 | . 42 24 26 103 . Cannon 103 | . . . . 49 54 Launcher 20 | . 5 11 4 . . Special . | . . . . . . Kinetic 52 | . 24 20 . 8 . Thermal 246 | . 18 4 26 144 54 Explosive 20 | . 5 11 4 . . Electromagnetic . | . . . . . . Robot Hit Streak 17 | . 6 5 6 17 11 Robot Miss Streak 6 | . 3 2 3 5 6 Penetration Max . | . . . . . . Secondary Targets . | . . . . . . Shots Hit Robots 196 | . 26 22 14 109 25 Core Hits 83 | . 15 12 9 34 13 Critical Kills . | . . . . . . Critical Parts Destroyed 4 | . . . . 4 . Critical Strikes 11 | . 1 1 . 9 . Burn 6 | . 1 1 . 4 . Smash 5 | . . . . 5 . Melee Attacks 18 | . . . . 18 . Impact 18 | . . . . 18 . Slashing . | . . . . . . Piercing . | . . . . . . Sneak Attacks 2 | . . . . 2 . Combat Hostiles . | . . . . . . Follow-up Attacks . | . . . . . . Damage Inflicted 4896 | . 534 750 473 2492 647 Guns 1545 | . 317 184 159 885 . Cannons 1315 | . . . . 717 598 Explosions 1260 | . 213 562 314 171 . Melee 666 | . . . . 666 . Ramming 110 | . 4 4 . 53 49 Kinetic 420 | . 205 115 . 100 . Thermal 2440 | . 112 69 159 1502 598 Explosive 1260 | . 213 562 314 171 . Electromagnetic . | . . . . . . Impact 666 | . . . . 666 . Slashing . | . . . . . . Piercing . | . . . . . . Highest Corruption . | . . . . . . Average Corruption . | . . . . . . Corruption Purged . | . . . . . . Corruption Blocked . | . . . . . . Overload Shots . | . . . . . . Overflow Damage 283 | . . 10 21 252 . Projectiles . | . . . . . . Explosions 31 | . . 10 21 . . Melee 252 | . . . . 252 . Knockbacks 5 | . . 1 . 3 1 Impact 5 | . . 1 . 3 1 Kinetic . | . . . . . . Secondary . | . . . . . . Self-Inflicted Damage 151 | . 67 30 54 . . Shots 5 | . 2 1 2 . . Rammed . | . . . . . . Targets Rammed 24 | . 1 1 . 8 14 Kicked 24 | . 1 1 . 8 14 Crushed . | . . . . . . Highest Temperature 647 | . 72 42 288 647 334 Average Temperature 129 | . 28 21 88 145 164 Received Heat Transfer 2169 | . 129 189 18 348 1485 Effects 14 | . . . . 13 1 Shutdowns 2 | . . . . 2 . Energy Bleed 2 | . . . . 1 1 Interference 5 | . . . . 5 . Matter Decay 1 | . . . . 1 . Short Circuit 1 | . . . . 1 . Damage (minor) 3 | . . . . 3 . Siege Activations . | . . . . . . Martial Activations . | . . . . . . Shielding Activations . | . . . . . . Robots Disrupted . | . . . . . . Combat Hostiles . | . . . . . . Robots Corrupted 4 | . . . . 4 . Combat Hostiles 4 | . . . . 4 . Parts Fried 5 | . . . . 5 . Impact Corruptions 10 | . . . . 10 . Robots Melted 3 | . . . . 3 . Combat Hostiles 1 | . . . . 1 . Parts Melted 6 | . . . 1 4 1 Heat Transferred 5565 | . 407 222 384 3479 1073 Parts Sabotaged . | . . . . . . Parts Stolen . | . . . . . . Parts Stripped . | . . . . . . Power Chain Reactions . | . . . . . . Alert | -11 -10 -10 -9 -9 -8 ------- Run | Yrd Mat Min Mat Sto Mat Maximum Alert Level 1 | . . . . 1 . Low Security (%) 59 | 100 100 100 100 36 100 Level 1 40 | . . . . 63 . Level 2 . | . . . . . . Level 3 . | . . . . . . Level 4 . | . . . . . . Level 5 . | . . . . . . High Security . | . . . . . . Max Security . | . . . . . . Peak Influence 396 | . 134 89 191 396 152 Initial 143 | . . 34 18 59 143 Average 179 | . 52 35 117 245 97 Influence Increases 1970 | . 205 219 313 1064 169 Destroy 0b10 Robot/C 1160 | . 100 140 200 620 100 Destroy 0b10 Robot/NC 95 | . 15 . 5 65 10 Destroy Leader 300 | . 24 30 40 186 20 Allied During Kill 173 | . . . 25 148 . Successful Hack 40 | . 7 . . 26 7 Disable Machine 105 | . 30 15 15 15 30 Destroy Structure 97 | . 29 34 28 4 2 Influence Decreases 1970 | . 117 260 219 866 508 Entered New Map 361 | . . 54 29 82 196 Time Decay 1167 | . 117 166 120 634 130 Lost Part 162 | . . 40 10 10 102 Lost Ally 280 | . . . 60 140 80 Squads Dispatched 11 | . 2 . 1 6 2 Investigation 5 | . 1 . . 4 . Extermination . | . . . . . . Reinforcement 5 | . 1 . 1 1 2 Assault . | . . . . . . Garrison 1 | . . . . 1 . Intercept . | . . . . . . Searches Triggered . | . . . . . . Construction Impeded . | . . . . . . Haulers Reinforced . | . . . . . . Active Scanning Responses . | . . . . . . Cargo Convoy Interrupts . | . . . . . . Stealth | -11 -10 -10 -9 -9 -8 --------- Run | Yrd Mat Min Mat Sto Mat Distress Signals 6 | . . . 2 3 1 Communications Jammed . | . . . . . . Distress Signals . | . . . . . . Times Spotted 76 | . 10 7 13 31 15 Peak Tracking Total 8 | . 4 3 7 7 8 Tactical Retreats . | . . . . . . Traps | -11 -10 -10 -9 -9 -8 ------- Run | Yrd Mat Min Mat Sto Mat Traps Triggered 2 | . . . . 2 . Indirectly . | . . . . . . Trap Hack Attempts . | . . . . . . Triggered . | . . . . . . Disarmed . | . . . . . . Reprogrammed . | . . . . . . Reused . | . . . . . . Traps Extracted . | . . . . . . Installed . | . . . . . . Triggered . | . . . . . . Machines | -11 -10 -10 -9 -9 -8 ---------- Run | Yrd Mat Min Mat Sto Mat Machines Disabled 7 | . 2 1 1 1 2 Max in Single Turn 1 | . 1 1 1 1 1 Garrison Access 1 | . . . . 1 . Machines Repaired . | . . . . . . Machines Dismantled . | . . . . . . Machines Sabotaged . | . . . . . . Overloaded Fab Kills . | . . . . . . Hacking | -11 -10 -10 -9 -9 -8 --------- Run | Yrd Mat Min Mat Sto Mat Machines Accessed 19 | . 3 . . 15 1 Terminals 16 | . 3 . . 12 1 Fabricators . | . . . . . . Repair Stations 2 | . . . . 2 . Recycling Units . | . . . . . . Scanalyzers . | . . . . . . Garrison Access 1 | . . . . 1 . Total Hacks 42 | . 10 . . 31 1 Successful 20 | . 3 . . 16 1 Failed 22 | . 7 . . 15 . Catastrophic 3 | . 2 . . 1 . Database Lockouts . | . . . . . . Manual 27 | . 6 . . 20 1 Terminals 36 | . 10 . . 25 1 Fabricators . | . . . . . . Repair Stations 5 | . . . . 5 . Recycling Units . | . . . . . . Scanalyzers . | . . . . . . Garrison Access 1 | . . . . 1 . Terminal Hacks 14 | . 3 . . 10 1 Prototype ID Bank 1 | . 1 . . . . Open Door 4 | . . . . 4 . Branch Access Points 5 | . 1 . . 3 1 Registered Prototypes 1 | . . . . 1 . Zone Layout 3 | . 1 . . 2 . Fabricator Hacks . | . . . . . . Repair Station Hacks 5 | . . . . 5 . Scan Component 3 | . . . . 3 . Repair 2 | . . . . 2 . Recycling Unit Hacks . | . . . . . . Scanalyzer . | . . . . . . Garrison Access Hacks 1 | . . . . 1 . Seal Access 1 | . . . . 1 . Unauthorized Hacks . | . . . . . . Terminals . | . . . . . . Fabricators . | . . . . . . Repair Stations . | . . . . . . Recycling Units . | . . . . . . Scanalyzers . | . . . . . . Garrison Access . | . . . . . . Data Cores Recovered . | . . . . . . Used . | . . . . . . Hacking Detections 16 | . 3 . . 12 1 Full Trace Events 8 | . 2 . . 6 . Feedback Events . | . . . . . . Feedback Blocked . | . . . . . . Robot Schematics Acquired . | . . . . . . Robots Built . | . . . . . . Authchips . | . . . . . . Time . | . . . . . . Total Robot Build Rating . | . . . . . . Part Schematics Acquired . | . . . . . . Parts Built . | . . . . . . Authchips . | . . . . . . Time . | . . . . . . Total Part Build Rating . | . . . . . . Part Studies Acquired . | . . . . . . Parts Repaired 2 | . . . . 2 . Time 70 | . . . . 70 . Parts Recycled . | . . . . . . Recycled Matter . | . . . . . . Retrieved Matter . | . . . . . . Retrieved Components . | . . . . . . Parts Scanalyzed . | . . . . . . Part Schematics Acquired . | . . . . . . Parts Damaged . | . . . . . . Bothacking | -11 -10 -10 -9 -9 -8 ------------ Run | Yrd Mat Min Mat Sto Mat Used RIF Installer . | . . . . . . Robots Hacked . | . . . . . . Non-combat . | . . . . . . Combat . | . . . . . . Robot Hacks Applied . | . . . . . . Relay Couplers Released . | . . . . . . Fabnet Peak Effective % . | . . . . . . Robots Rewired . | . . . . . . Allies Hacked . | . . . . . . Hacks Repelled . | . . . . . . Allies | -11 -10 -10 -9 -9 -8 -------- Run | Yrd Mat Min Mat Sto Mat Total Allies 13 | . . 3 . 10 . Largest Group 10 | . . 3 3 10 2 Highest-Rated Group 88 | . . 40 40 88 24 Highest-Rated Ally 16 | . . 16 16 16 16 Total Orders 9 | . . 5 . . 4 FOLLOW 1 | . . . . . 1 GUARD 5 | . . 5 . . . EXPLORE 1 | . . . . . 1 RETURN 2 | . . . . . 2 Ally Attacks 116 | . . . 20 88 8 Total Damage 1090 | . . . 245 774 71 Kills 17 | . . . 3 13 1 Allies Corrupted . | . . . . . . Allies Melted . | . . . . . . Intel | -11 -10 -10 -9 -9 -8 ------- Run | Yrd Mat Min Mat Sto Mat Active Infowar (turns) 878 | . 238 384 246 10 . Structural 878 | . 238 384 246 10 . Robot Analysis Total . | . . . . . . Derelict Logs Recovered 1 | . . 1 . . . Drone Launches 12 | . . . . . 12 Drone Recoveries 8 | . . . . . 8 Exploration | -11 -10 -10 -9 -9 -8 ------------- Run | Yrd Mat Min Mat Sto Mat Turns Passed 3532 | 65 312 384 246 2224 301 Spaces Moved 1708 | 46 185 252 112 1016 97 Core 10 | 7 . . . 3 . Treads . | . . . . . . Legs 1698 | 39 185 252 112 1013 97 Wheels . | . . . . . . Hover . | . . . . . . Flight . | . . . . . . Fastest Speed 50 | 50 120 120 120 120 120 Average Speed 159 | 109 120 126 166 175 169 Slowest Speed 400 | 120 120 190 190 400 190 Overloaded Moves . | . . . . . . Propulsion Burnouts . | . . . . . . Robots Hopped . | . . . . . . Potential Cave-ins . | . . . . . . Cave-ins Triggered . | . . . . . . Exploration Rate (%) 34 | 3 38 54 12 89 12 Regions Visited 5 Branch Regions 2 Pre-discovered Areas 1 | . . 1 . . . Known Exits Taken 1 | . 1 . . . . Unknown Exits Taken 4 | 1 . 1 1 1 . Scrap Searched 1 | . . 1 . . . Spaces Dug . | . . . . . . Terrain Destroyed 99 | . 26 46 25 2 . Melee . | . . . . . . Projectile . | . . . . . . AOE 99 | . 26 46 25 2 . Terrain Rammed . | . . . . . . Walls Destroyed . | . . . . . . Machines Disabled . | . . . . . . Actions | -11 -10 -10 -9 -9 -8 --------- Run | Yrd Mat Min Mat Sto Mat Total 2214 | 57 229 282 149 1311 186 Wait 146 | . 6 . . 108 32 Move 1703 | 45 184 251 111 1015 97 Hop . | . . . . . . Pick Up 55 | 6 6 2 13 26 2 Fast Attach 25 | 6 1 1 1 15 1 Attach 31 | . . 3 5 6 17 Detach 10 | . . . 3 5 2 Swap 20 | . 2 . 2 14 2 Drop 47 | . 5 . 3 38 1 Fire 135 | . 24 24 11 58 18 Melee 18 | . . . . 18 . Ram . | . . . . . . Kick 24 | . 1 1 . 8 14 Crush . | . . . . . . Escape Stasis . | . . . . . . Rewire . | . . . . . . Trap . | . . . . . . Miscellaneous . | . . . . . . Route ------- -11/Scrapyard -10/Materials (discovered 2 exits: *Min x2) -10/Mines -9/Materials -9/Storage (discovered 2 exits: *Mat / Rec) -8/Materials History --------- Turn | Location | Event 10 | -11/Scrapyard | Discovered new exit (range 15) 66 | -11/Scrapyard | Entered Materials 84 | -10/Materials | Identified exit to Mines 310 | -10/Materials | Build established: Mutant 378 | -10/Materials | Entered Mines 494 | -10/Mines | Core integrity fell below 50% 552 | -10/Mines | Learned location of Mines (-8) 735 | -10/Mines | Discovered new exit (range 7) 753 | -10/Mines | Assisted by bots powering up and referring to "LRC-V3" 762 | -10/Mines | Entered Materials 762 | -9/Materials | Accompanied by 3 allies 762 | -9/Materials | Evolved 2 slots: Propulsion x1, Weapon x1 816 | -9/Materials | Discovered new exit (range 9) 930 | -9/Materials | Lost 3 allies 1008 | -9/Materials | Entered Storage 1771 | -9/Storage | Build established: Scavenger-Gunner 1815 | -9/Storage | Identified exit to Recycling 1818 | -9/Storage | Assisted by bots powering up and referring to "LRC-V3" 2106 | -9/Storage | Build established: Commander-Gunner 2281 | -9/Storage | Repaired Aluminum Leg 2341 | -9/Storage | Garrison activated, responded to threat 2400 | -9/Storage | Lost 3 allies 2499 | -9/Storage | Repaired Broken Imp. Aluminum Leg 2644 | -9/Storage | Core integrity fell below 50% 2674 | -9/Storage | Discovered new exit (range 13) 3077 | -9/Storage | Build established: Gunner 3232 | -9/Storage | Entered Materials 3232 | -8/Materials | Accompanied by 2 allies 3232 | -8/Materials | Evolved 2 slots: Propulsion x1, Utility x1 3429 | -8/Materials | Lost 4 allies 3513 | -8/Materials | Core integrity fell below 50% 3528 | -8/Materials | Core integrity fell below 20% 3533 | -8/Materials | Destroyed by X-62 Marksman with Pulse Rifle Last Messages --------------- 03524_ K-01 Serf collects debris. 03524_ Kicked G-47 Trooper out of the way. 03525_ Aluminum Leg destroyed. 03526_ Kicked G-47 Trooper. 03527_ Slug penetrates Atomic Centrifuge. 03527_ Adv. Beam Cannon destroyed. 03527_ Penetrated by Slug. 03528_ Kicked G-47 Trooper. 03528_ Carbon-fiber Leg destroyed. 03530_ Acquired 10 matter. 03530_ Penetrated by Slug. 03530_ Hacking Suite destroyed. 03530_ G-47 Trooper destroyed. 03530_ Penetrated by Slug. 03530_ Adv. Heat Sink destroyed. 03531_ Acquired 10 matter. 03531_ X-62 Marksman suffers critical hit (Burn). 03532_ Acquired 8 matter. 03532_ K-01 Serf collects debris. 03533_ Penetrated by Slug. Map ----- +----------------------------------------------------+ | ?????????????????????????????????????????????????? | | ?????????????????????????????????????????????????? | | ?????????????????????????????????????????????????? | | ?????????????????????????????????????????????????? | | ?????????????????????????????????????????????????? | | ?????????????????????????????????????????????????? | | ?????????????????????????????????????????????????? | | ?????????????????????????????????H???????????????? | | ?????????????????????????????????????????????????? | | ?????????????????????????????????????????????????? | | ?????????????????????????????????????????????????? | | ?????????????????????????????????????????????????? | | ?????????????????????????????????????????????????? | | ?????????????????????????????????????????????????? | | ?????????????????????????????????????????????????? | | ?????????????????????????????????????????????????? | | ?????????????????????????????????????????????????? | | ?????????????????????????????????????????????????? | | ?????????????????????????????????????????????????? | | ?????????????????????########????????????????????? | | ?????????????????????# #????????????????????? | | ?????????????????????# [* #????????????????????? | | ?????????????????????#" %= #????????????????????? | | ?????????????????????# [=g% #????????????????????? | | ?????????????????????# *x=gg#????????????????????? | | ????????????????# ???#[%%@x #######??????????????? | | ??????????######## ######g### #??????????????? | | ??????? | =*ku% ########???????? | | ??????? =% ** %% " # #???????? | | ??????? = u%!= # #???????? | | ?????????################+### #""" #???????? | | ?????????????????????# ## ##""" #???????? | | ?????????????????????#""" =## ##""" ????????? | | ?????????????????????#""" ## ## ??????????? | | ?????????????????????#""" ## ###/############# | | ?????????????????????# ## | | ?????????????????????# + | | ?????????????????????######### | | ?????????????????????????????##################### | | ???????????????????????????????????????????????#/ | | ???????????????????????????????????????????????# | | ???????????????????????????????????????????????# " | | ???????????????????????????????????????????????# " | | ???????????????????????????????????????????????# " | | ???????????????????????????????????????????????# | | ???????????????????????????????????????????????### | | ?????????????????????????????????????????????????? | | ?????????????????????????????????????????????????? | | ?????????????????????????????????????????????????? | | ?????????????????????????????????????????????????? | +----------------------------------------------------+ Best States ------------- Heat Dissipation 50 Energy Generation 17 Energy Capacity 265 Matter Stores 300 Matter Capacity 300 Sight Range 16 Terrain Scan Density 10 Evasion (%) 55 Offensive Hacking 10 Item Schematics ----------------- None Robot Schematics ------------------ None Fabricated ------------ Nothing Repaired ---------- Aluminum Leg | 20% | -9/Storage Imp. Aluminum Leg | 39% | -9/Storage | Broken Studied --------- None Alien Tech Used ----------------- None Achievements -------------- Hydra Challenges ------------ None Game ------ Seed StorageFactoryImmobilizer Manual? 0 Play Time 01:00:17 Cumulative 16.7 hours Start 2026.01.25 @ 08:37:32 End 2026.01.25 @ 09:37:17 Sessions 1 Manual Loads 0 Difficulty Rogue Special Mode None Game No. 22 Rogue 22 Adventurer 0 Explorer 0 Win Type - Total 0 Types 0/0/0/0/0/0/0/0/0/0 Lore% 6 Gallery% 18 Achievement% 15 Wizard Run 0 Options --------- Layout 0 ASCII 0 Keyboard 1 Movement Vi Keybinds 0 Fullscreen 1 Font 18/X11 Map View 38x25 Zoom Use 91% Tactical HUD 1 Map Filters NONE Filters NONE Steam 1 RUN: 7e0c8448-72c5-40c4-9918-5b56170c91ca